fUSD/lending_fUSD_20250804
["ID","MTS","AMOUNT","RATE_DAILY","PERIOD"]
[377180202,1754268683847,-1008.71,0.00049863,120]
[377180203,1754268683856,-400.0,0.00049863,120]
[377180204,1754268683865,-923.19,0.00049863,120]
[377180205,1754268683875,-400.0,0.00049863,120]
[377180206,1754268683885,-400.0,0.00049863,120]
[377180207,1754268683894,-400.0,0.00049863,120]
[377180208,1754268683904,-1382.88,0.00049863,120]
[377180209,1754268683913,-2537.67,0.00049863,120]
[377180210,1754268683922,-400.0,0.00049863,120]
[377180211,1754268683932,-425.3,0.00049863,120]
[377180212,1754268683941,-531.95,0.00049863,120]
[377180213,1754268683951,-722.7,0.00049863,120]
[377180214,1754268683960,-455.57,0.00049863,120]
[377180215,1754268683969,-400.0,0.00049863,120]
[377180216,1754268683979,-400.0,0.00049863,120]
[377180217,1754268683988,-400.0,0.00049863,120]
[377180218,1754268683998,-400.0,0.00049863,120]
[377180219,1754268684007,-400.0,0.00049863,120]
[377180220,1754268684017,-400.0,0.00049863,120]
[377180221,1754268684027,-1556.65,0.00049863,120]
[377180222,1754268684036,-2962.11,0.00049863,120]
[377180223,1754268684047,-669.47,0.00049863,120]
[377180224,1754268684056,-772.23,0.00049863,120]
[377180225,1754268684066,-1030.73,0.00049863,120]
[377180226,1754268684075,-400.0,0.00049863,120]
[377180227,1754268684084,-400.0,0.00049863,120]
[377180228,1754268684094,-1002.34,0.00049863,120]
[377180229,1754268684104,-400.0,0.00049863,120]
[377180230,1754268684113,-400.0,0.00049863,120]
[377180231,1754268684122,-6910.03,0.00049863,120]
[377180232,1754268684131,-276.991448,0.00049863,120]
[377180233,1754268684141,-400.0,0.00049863,120]
[377180234,1754268684150,-450.71,0.00049863,120]
[377180235,1754268684159,-222.89007,0.00049863,120]
[377180236,1754268684169,-652.98,0.00049863,120]
[377180237,1754268684178,-400.0,0.00049863,120]
[377180238,1754268684187,-493.79,0.00049863,120]
[377180239,1754268684196,-400.0,0.00049863,120]
[377180240,1754268684205,-222.89007,0.00049863,120]
[377180241,1754268684214,-7390.45,0.00049863,120]
[377180242,1754268684224,-550.23,0.00049863,120]
[377180243,1754268684233,-276.991448,0.00049863,120]
[377180244,1754268684243,-400.0,0.00049863,120]
[377180245,1754268684251,-1493.06,0.00049863,120]
[377180246,1754268684261,-400.0,0.00049863,120]
[377180247,1754268684270,-400.0,0.00049863,120]
[377180248,1754268684279,-400.0,0.00049863,120]
[377180249,1754268684288,-879.94,0.00049863,120]
[377180250,1754268684297,-400.0,0.00049863,120]
[377180251,1754268684306,-400.0,0.00049863,120]
[377180252,1754268684315,-1569.23,0.00049863,120]
[377180253,1754268684326,-400.0,0.00049863,120]
[377180254,1754268684335,-500.44,0.00049863,120]
[377180255,1754268684348,-790.99,0.00049863,120]
[377180256,1754268684357,-558.0,0.00049863,120]
[377180257,1754268684366,-400.0,0.00049863,120]
[377180258,1754268684375,-986.16,0.00049863,120]
[377180259,1754268684384,-400.0,0.00049863,120]
[377180260,1754268684393,-393.53793411,0.00049863,120]
[377180261,1754268684402,-400.0,0.00049863,120]
[377180262,1754268684411,-400.0,0.00049863,120]
[377180263,1754268684420,-400.0,0.00049863,120]
[377180264,1754268684430,-400.0,0.00049863,120]
[377180265,1754268684439,-400.0,0.00049863,120]
[377180266,1754268684448,-400.0,0.00049863,120]
[377180267,1754268684457,-400.0,0.00049863,120]
[377180268,1754268684466,-1060.73,0.00049863,120]
[377180269,1754268684475,-400.0,0.00049863,120]
[377180270,1754268684485,-400.0,0.00049863,120]
[377180271,1754268684494,-400.0,0.00049863,120]
[377180272,1754268684503,-400.0,0.00049863,120]
[377180273,1754268684512,-1434.71,0.00049863,120]
[377180274,1754268684521,-668.69,0.00049863,120]
[377180275,1754268684530,-852.72,0.00049863,120]
[377180276,1754268684540,-400.0,0.00049863,120]
[377180277,1754268684549,-607.24,0.00049863,120]
[377180278,1754268684558,-400.0,0.00049863,120]
[377180279,1754268684567,-151.0,0.00049863,120]
[377180280,1754268684577,-435.18,0.00049863,120]
[377180281,1754268684586,-400.0,0.00049863,120]
[377180282,1754268684596,-400.0,0.00049863,120]
[377180283,1754268684605,-1703.79,0.00049863,120]
[377180284,1754268684614,-400.0,0.00049863,120]
[377180285,1754268684624,-400.0,0.00049863,120]
[377180286,1754268684635,-400.0,0.00049863,120]
[377180287,1754268684644,-400.0,0.00049863,120]
[377180288,1754268684653,-1017.05,0.00049863,120]
[377180289,1754268684663,-400.0,0.00049863,120]
[377180290,1754268684672,-400.0,0.00049863,120]
[377180291,1754268684685,-841.35,0.00049863,120]
[377180292,1754268684703,-400.0,0.00049863,120]
[377180293,1754268684713,-757.28,0.00049863,120]
[377180294,1754268684723,-400.0,0.00049863,120]
[377180295,1754268684733,-995.12,0.00049863,120]
[377180296,1754268684742,-7585.79,0.00049863,120]
[377180297,1754268684751,-1753.62,0.00049863,120]
[377180298,1754268684760,-425.9,0.00049863,120]
[377180299,1754268684770,-400.0,0.00049863,120]
[377180300,1754268684779,-400.0,0.00049863,120]
[377180301,1754268684788,-400.0,0.00049863,120]
[377180302,1754268684798,-400.0,0.00049863,120]
[377180303,1754268684807,-400.0,0.00049863,120]
[377180304,1754268684816,-400.0,0.00049863,120]
[377180305,1754268684826,-542.0,0.00049863,120]
[377180306,1754268684835,-1880.01,0.00049863,120]
[377180307,1754268684846,-400.0,0.00049863,120]
[377180308,1754268684855,-400.0,0.00049863,120]
[377180309,1754268684865,-400.0,0.00049863,120]
[377180310,1754268684874,-1978.0,0.00049863,14]
[377180311,1754268684883,-510.92,0.00049863,120]
[377180312,1754268684892,-211.16,0.00049863,120]
[377180313,1754268684901,-1463.67,0.00049863,120]
[377180314,1754268684911,-742.92,0.00049863,120]
[377180315,1754268684920,-600.06,0.00049863,120]
[377180316,1754268684929,-1198.9,0.00049863,120]
[377180317,1754268684939,-400.0,0.00049863,120]
[377180318,1754268684952,-583.04,0.00049863,120]
[377180319,1754268684962,-1005.86,0.00049863,120]
[377180320,1754268684977,-2228.26,0.00049863,120]
[377180321,1754268684987,-151.0,0.00049863,120]
[377180322,1754268684996,-377.05174427,0.00049863,120]
[377180323,1754268685006,-741.27,0.00049863,120]
[377180324,1754268685015,-400.0,0.00049863,120]
[377180325,1754268685025,-433.14,0.00049863,120]
[377180326,1754268685034,-1033.18,0.00049863,120]
[377180327,1754268685044,-493.73,0.00049863,120]
[377180328,1754268685054,-273.27,0.00049863,120]
[377180329,1754268685064,-400.0,0.00049863,120]
[377180330,1754268685073,-400.0,0.00049863,120]
[377180331,1754268685083,-1536.49,0.00049863,120]
[377180332,1754268685093,-400.0,0.00049863,120]
[377180333,1754268685103,-586.15,0.00049863,120]
[377180334,1754268685113,-731.49,0.00049863,120]
[377180335,1754268685122,-1607.18,0.00049863,120]
[377180336,1754268685131,-729.84,0.00049863,120]
[377180337,1754268685140,-400.0,0.00049863,120]
[377180338,1754268685150,-400.0,0.00049863,120]
[377180339,1754268685159,-526.52,0.00049863,120]
[377180340,1754268685168,-400.0,0.00049863,120]
[377180341,1754268685178,-400.0,0.00049863,120]
[377180342,1754268685188,-400.0,0.00049863,120]
[377180343,1754268685197,-400.0,0.00049863,120]
[377180344,1754268685207,-400.0,0.00049863,120]
[377180345,1754268685217,-400.0,0.00049863,120]
[377180346,1754268685226,-400.0,0.00049863,120]
[377180347,1754268685236,-833.33,0.00049863,120]
[377180348,1754268685245,-400.0,0.00049863,120]
[377180349,1754268685254,-950.98,0.00049863,120]
[377180350,1754268685263,-1184.53,0.00049863,120]
[377180351,1754268685272,-400.0,0.00049863,120]
[377180352,1754268685281,-400.0,0.00049863,120]
[377180353,1754268685290,-5414.63,0.00049863,120]
[377180354,1754268685300,-1343.31,0.00049863,120]
[377180355,1754268685309,-4075.46,0.00049863,120]
[377180356,1754268685319,-400.0,0.00049863,120]
[377180357,1754268685329,-400.0,0.00049863,120]
[377180358,1754268685341,-400.0,0.00049863,120]
[377180359,1754268685350,-400.0,0.00049863,120]
[377180360,1754268685359,-400.0,0.00049863,120]
[377180361,1754268685368,-400.0,0.00049863,120]
[377180362,1754268685377,-1379.69,0.00049863,120]
[377180363,1754268685386,-400.0,0.00049863,120]
[377180364,1754268685395,-2593.84,0.00049863,120]
[377180365,1754268685404,-1030.88,0.00049863,120]
[377180366,1754268685414,-400.0,0.00049863,120]
[377180367,1754268685424,-411.9,0.00049863,120]
[377180368,1754268685433,-445.51,0.00049863,120]
[377180369,1754268685442,-400.0,0.00049863,120]
[377180370,1754268685451,-1206.22,0.00049863,120]
[377180371,1754268685461,-607.02,0.00049863,120]
[377180372,1754268685470,-833.57,0.00049863,120]
[377180373,1754268685479,-400.0,0.00049863,16]
[377180374,1754268685489,-400.0,0.00049863,120]
[377180375,1754268685498,-1399.31,0.00049863,120]
[377180376,1754268685508,-400.0,0.00049863,120]
[377180377,1754268685518,-538.01,0.00049863,120]
[377180378,1754268685528,-400.0,0.00049863,120]
[377180379,1754268685538,-400.0,0.00049863,120]
[377180380,1754268685549,-400.0,0.00049863,120]
[377180381,1754268685558,-400.0,0.00049863,120]
[377180382,1754268685569,-400.0,0.00049863,120]
[377180383,1754268685578,-2840.83,0.00049863,120]
[377180384,1754268685588,-803.92,0.00049863,120]
[377180385,1754268685600,-403.21,0.00049863,120]
[377180386,1754268685610,-400.0,0.00049863,120]
[377180387,1754268685620,-475.93,0.00049863,120]
[377180388,1754268685630,-400.0,0.00049863,120]
[377180389,1754268685639,-400.0,0.00049863,120]
[377180390,1754268685650,-400.0,0.00049863,120]
[377180391,1754268685660,-400.0,0.00049863,120]
[377180392,1754268685671,-1006.17,0.00049863,120]
[377180393,1754268685688,-400.0,0.00049863,120]
[377180394,1754268685702,-400.0,0.00049863,120]
[377180395,1754268685719,-400.0,0.00049863,120]
[377180396,1754268685730,-400.0,0.00049863,120]
[377180397,1754268685740,-621.49,0.00049863,120]
[377180398,1754268685750,-758.57,0.00049863,120]
[377180399,1754268685760,-400.0,0.00049863,120]
[377180400,1754268685771,-400.0,0.00049863,120]
[377180401,1754268685782,-400.0,0.00049863,120]
[377180402,1754268685792,-1049.57,0.00049863,120]
[377180403,1754268685801,-400.0,0.00049863,120]
[377180404,1754268685812,-400.0,0.00049863,120]
[377180405,1754268685822,-400.0,0.00049863,120]
[377180406,1754268685833,-1350.55,0.00049863,120]
[377180407,1754268685844,-876.85,0.00049863,120]
[377180408,1754268685854,-400.0,0.00049863,120]
[377180409,1754268685864,-1044.86,0.00049863,120]
[377180410,1754268685874,-409.23629231,0.00049863,120]
[377180411,1754268685884,-801.02,0.00049863,120]
[377180412,1754268685894,-496.26,0.00049863,120]
[377180413,1754268685903,-400.0,0.00049863,120]
[377180414,1754268685913,-400.0,0.00049863,2]
[377180415,1754268685924,-400.0,0.00049863,120]
[377180416,1754268685934,-400.0,0.00049863,120]
[377180417,1754268685943,-400.0,0.00049863,120]
[377180418,1754268685953,-400.0,0.00049863,120]
[377180419,1754268685962,-400.0,0.00049863,120]
[377180420,1754268685972,-400.0,0.00049863,120]
[377180421,1754268685982,-400.0,0.00049863,120]
[377180422,1754268685991,-400.0,0.00049863,120]
[377180423,1754268686001,-2403.7,0.00049863,120]
[377180424,1754268686011,-400.0,0.00049863,120]
[377180425,1754268686021,-563.95,0.00049863,120]
[377180426,1754268686031,-400.0,0.00049863,120]
[377180427,1754268686041,-400.0,0.00049863,120]
[377180428,1754268686051,-400.0,0.00049863,120]
[377180429,1754268686061,-688.74,0.00049863,120]
[377180430,1754268686071,-1799.51,0.00049863,120]
[377180431,1754268686081,-400.0,0.00049863,120]
[377180432,1754268686091,-400.0,0.00049863,120]
[377180433,1754268686101,-400.0,0.00049863,120]
[377180434,1754268686111,-211.96623917,0.00049863,120]
[377180435,1754268686121,-400.0,0.00049863,120]
[377180436,1754268686131,-1965.73,0.00049863,120]
[377180437,1754268686140,-400.0,0.00049863,120]
[377180438,1754268686150,-400.0,0.00049863,120]
[377180439,1754268686160,-400.0,0.00049863,120]
[377180440,1754268686170,-400.0,0.00049863,120]
[377180441,1754268686179,-400.0,0.00049863,120]
[377180442,1754268686189,-400.0,0.00049863,120]
[377180443,1754268686199,-256.70253169,0.0004988,7]
[377180444,1754268686208,-150.0,0.00049884,7]
[377180445,1754268686218,-150.0,0.00049909,7]
[377180446,1754268686227,-150.0,0.00049919,7]
[377180447,1754268686237,-150.0,0.0004994,7]
[377180448,1754268686247,-150.0,0.00049942,7]
[377180449,1754268686257,-150.0,0.00049946,7]
[377180450,1754268686266,-150.0,0.00049962,7]
[377180451,1754268686276,-176.0,0.0004998,2]
[377180452,1754268686285,-150.0,0.00049998,7]
[377180453,1754268686295,-150.0,0.00049999,7]
[377180454,1754268686304,-9692.03,0.0005,120]
[377180455,1754268686314,-1000.0,0.0005,120]
[377180456,1754268686324,-606.93,0.0005,120]
[377180457,1754268686333,-2110.0,0.0005,30]
[377180458,1754268686344,-500.0,0.0005,120]
[377180459,1754268686354,-4000.0,0.0005,120]
[377180460,1754268686364,-3000.0,0.0005,30]
[377180461,1754268686374,-3000.0,0.0005,30]
[377180462,1754268686384,-156.175101,0.0005,120]
[377180463,1754268686393,-168.355508,0.0005,60]
[377180464,1754268686403,-168.355508,0.0005,60]
[377180465,1754268686412,-8695.8,0.0005,120]
[377180466,1754268686422,-500.0,0.0005,120]
[377180467,1754268686431,-500.0,0.0005,120]
[377180468,1754268686441,-150.0,0.00050012,7]
[377180469,1754268686451,-577.67,0.00050036,120]
[377180470,1754268686461,-400.0,0.00050036,120]
[377180471,1754268686471,-400.0,0.00050036,120]
[377180472,1754268686480,-528.34051537,0.00050036,120]
[377180473,1754268686490,-400.0,0.00050036,120]
[377180474,1754268686500,-400.0,0.00050036,120]
[377180475,1754268686509,-400.0,0.00050036,120]
[377180476,1754268686520,-400.0,0.00050036,120]
[377180477,1754268686530,-622.82,0.00050036,120]
[377180478,1754268686540,-400.0,0.00050036,120]
[377180479,1754268686550,-400.0,0.00050036,120]
[377180480,1754268686560,-644.55,0.00050036,120]
[377180481,1754268686569,-461.64,0.00050036,120]
[377180482,1754268686579,-284.08206186,0.00050036,120]
[377180483,1754268686591,-151.0,0.00050036,120]
[377180484,1754268686600,-400.0,0.00050036,120]
[377180485,1754268686610,-400.0,0.00050036,120]
[377180486,1754268686620,-787.59,0.00050036,120]
[377180487,1754268686630,-564.34,0.00050036,120]
[377180488,1754268686639,-400.0,0.00050036,120]
[377180489,1754268686649,-400.0,0.00050036,120]
[377180490,1754268686659,-400.0,0.00050036,120]
[377180491,1754268686674,-400.0,0.00050036,120]
[377180492,1754268686686,-514.06,0.00050036,120]
[377180493,1754268686695,-603.45,0.00050036,120]
[377180494,1754268686705,-400.0,0.00050036,120]
[377180495,1754268686715,-400.0,0.00050036,120]
[377180496,1754268686725,-492.61,0.00050036,120]
[377180497,1754268686735,-1019.68,0.00050036,120]
[377180498,1754268686746,-151.0,0.00050036,120]
[377180499,1754268686755,-400.0,0.00050036,120]
[377180500,1754268686765,-400.0,0.00050036,120]
[377180501,1754268686775,-693.58,0.00050036,120]
[377180502,1754268686785,-587.22,0.00050036,120]
[377180503,1754268686798,-703.36,0.00050036,120]
[377180504,1754268686809,-151.0,0.00050036,120]
[377180505,1754268686819,-400.0,0.00050036,120]
[377180506,1754268686829,-151.0,0.00050036,120]
[377180507,1754268686839,-400.0,0.00050036,120]
[377180508,1754268686849,-543.65,0.00050036,120]
[377180509,1754268686859,-400.0,0.00050036,120]
[377180510,1754268686868,-400.0,0.00050036,120]
[377180511,1754268686878,-468.51,0.00050036,120]
[377180512,1754268686888,-495.42,0.00050036,120]
[377180513,1754268686898,-571.01,0.00050036,120]
[377180514,1754268686909,-400.0,0.00050036,120]
[377180515,1754268686919,-400.0,0.00050036,120]
[377180516,1754268686929,-951.61,0.00050036,120]
[377180517,1754268686939,-1324.48,0.00050036,120]
[377180518,1754268686952,-151.0,0.00050036,120]
[377180519,1754268686962,-926.35,0.00050036,120]
[377180520,1754268686972,-151.0,0.00050036,120]
[377180521,1754268686981,-478.87365059,0.00050036,120]
[377180522,1754268686992,-942.67,0.00050036,120]
[377180523,1754268687001,-400.0,0.00050036,120]
[377180524,1754268687011,-400.0,0.00050036,120]
[377180525,1754268687021,-400.0,0.00050036,120]
[377180526,1754268687031,-774.71,0.00050036,2]
[377180527,1754268687041,-456.96,0.00050036,120]
[377180528,1754268687051,-400.0,0.00050036,120]
[377180529,1754268687061,-400.0,0.00050036,120]
[377180530,1754268687071,-400.0,0.00050036,120]
[377180531,1754268687081,-514.87,0.00050036,120]
[377180532,1754268687091,-415.85,0.00050036,120]
[377180533,1754268687101,-903.59,0.00050036,120]
[377180534,1754268687111,-1185.83,0.00050036,120]
[377180535,1754268687120,-400.0,0.00050036,120]
[377180536,1754268687130,-400.0,0.00050036,120]
[377180537,1754268687139,-400.0,0.00050036,120]
[377180538,1754268687149,-400.0,0.00050036,120]
[377180539,1754268687159,-1465.1,0.00050036,120]
[377180540,1754268687169,-857.32,0.00050036,120]
[377180541,1754268687178,-400.0,0.00050036,120]
[377180542,1754268687188,-524.75,0.00050036,120]
[377180543,1754268687197,-400.0,0.00050036,120]
[377180544,1754268687207,-415.82,0.00050036,120]
[377180545,1754268687217,-400.0,0.00050036,120]
[377180546,1754268687226,-400.0,0.00050036,120]
[377180547,1754268687236,-400.0,0.00050036,120]
[377180548,1754268687246,-1050.8,0.00050036,120]
[377180549,1754268687256,-700.06,0.00050036,120]
[377180550,1754268687266,-1526.54,0.00050036,120]
[377180551,1754268687275,-400.0,0.00050036,120]
[377180552,1754268687285,-400.0,0.00050036,120]
[377180553,1754268687294,-461.89014116,0.00050036,120]
[377180554,1754268687304,-400.0,0.00050036,120]
[377180555,1754268687313,-894.73,0.00050036,120]
[377180556,1754268687323,-1175.66,0.00050036,120]
[377180557,1754268687333,-400.0,0.00050036,120]
[377180558,1754268687342,-915.67,0.00050036,120]
[377180559,1754268687352,-966.88,0.00050036,120]
[377180560,1754268687361,-400.0,0.00050036,120]
[377180561,1754268687371,-472.66,0.00050036,120]
[377180562,1754268687381,-400.0,0.00050036,120]
[377180563,1754268687390,-400.0,0.00050036,120]
[377180564,1754268687400,-300.0,0.00050036,120]
[377180565,1754268687410,-400.0,0.00050036,120]
[377180566,1754268687419,-400.0,0.00050036,120]
[377180567,1754268687429,-400.0,0.00050036,120]
[377180568,1754268687439,-400.0,0.00050036,120]
[377180569,1754268687449,-1505.21,0.00050036,120]
[377180570,1754268687459,-647.16,0.00050036,120]
[377180571,1754268687469,-400.0,0.00050036,120]
[377180572,1754268687478,-1025.56,0.00050036,120]
[377180573,1754268687488,-400.0,0.00050036,120]
[377180574,1754268687498,-400.0,0.00050036,120]
[377180575,1754268687508,-400.0,0.00050036,120]
[377180576,1754268687518,-1338.88,0.00050036,120]
[377180577,1754268687527,-400.0,0.00050036,120]
[377180578,1754268687537,-430.02,0.00050036,120]
[377180579,1754268687547,-1087.32,0.00050036,120]
[377180580,1754268687557,-400.0,0.00050036,120]
[377180581,1754268687567,-516.68,0.00050036,120]
[377180582,1754268687577,-400.0,0.00050036,120]
[377180583,1754268687587,-402.2953279,0.00050036,120]
[377180584,1754268687599,-801.59,0.00050036,120]
[377180585,1754268687609,-456.45,0.00050036,120]
[377180586,1754268687618,-400.0,0.00050036,120]
[377180587,1754268687628,-400.0,0.00050036,120]
[377180588,1754268687640,-400.0,0.00050036,120]
[377180589,1754268687650,-1552.07,0.00050036,120]
[377180590,1754268687660,-400.0,0.00050036,120]
[377180591,1754268687671,-421.03,0.00050036,120]
[377180592,1754268687682,-979.49,0.00050036,120]
[377180593,1754268687696,-400.0,0.00050036,120]
[377180594,1754268687706,-400.0,0.00050036,120]
[377180595,1754268687715,-500.0,0.00050036,120]
[377180596,1754268687724,-400.0,0.00050036,120]
[377180597,1754268687734,-635.5,0.00050036,120]
[377180598,1754268687743,-400.0,0.00050036,120]
[377180599,1754268687753,-400.0,0.00050036,120]
[377180600,1754268687763,-400.0,0.00050036,120]
[377180601,1754268687773,-400.0,0.00050036,60]
[377180602,1754268687783,-698.78,0.00050036,120]
[377180603,1754268687793,-400.0,0.00050036,120]
[377180604,1754268687802,-400.0,0.00050036,120]
[377180605,1754268688108,-573.51,0.00050036,120]
[377180606,1754268688121,-400.0,0.00050036,120]
[377180607,1754268688131,-1529.14,0.00050036,120]
[377180608,1754268688141,-400.0,0.00050036,120]
[377180609,1754268688150,-458.21,0.00050036,120]
[377180610,1754268688160,-400.0,0.00050036,120]
[377180611,1754268688169,-400.0,0.00050036,120]
[377180612,1754268688179,-789.14,0.00050036,120]
[377180613,1754268688189,-400.0,0.00050036,120]
[377180614,1754268688198,-400.0,0.00050036,120]
[377180615,1754268688207,-400.0,0.00050036,120]
[377180616,1754268688217,-400.0,0.00050036,120]
[377180617,1754268688226,-670.31,0.00050036,120]
[377180618,1754268688235,-423.23,0.00050036,30]
[377180619,1754268688244,-400.0,0.00050036,120]
[377180620,1754268688254,-400.0,0.00050036,120]
[377180621,1754268688265,-488.78,0.00050036,120]
[377180622,1754268688274,-400.0,0.00050036,120]
[377180623,1754268688284,-526.89,0.00050036,120]
[377180624,1754268688294,-400.0,0.00050036,120]
[377180625,1754268688304,-1448.55,0.00050036,120]
[377180626,1754268688313,-400.0,0.00050036,120]
[377180627,1754268688323,-400.0,0.00050036,120]
[377180628,1754268688333,-400.0,0.00050036,120]
[377180629,1754268688343,-1301.65,0.00050036,120]
[377180630,1754268688353,-400.0,0.00050036,120]
[377180631,1754268688362,-400.0,0.00050036,120]
[377180632,1754268688372,-400.0,0.00050036,120]
[377180633,1754268688381,-1338.8,0.00050036,120]
[377180634,1754268688390,-400.0,0.00050036,120]
[377180635,1754268688400,-400.0,0.00050036,120]
[377180636,1754268688409,-1237.03,0.00050036,120]
[377180637,1754268688418,-712.17,0.00050036,120]
[377180638,1754268688427,-769.66,0.00050036,120]
[377180639,1754268688436,-442.21,0.00050036,120]
[377180640,1754268688446,-701.08,0.00050036,120]
[377180641,1754268688456,-400.0,0.00050036,120]
[377180642,1754268688466,-400.0,0.00050036,120]
[377180643,1754268688476,-400.0,0.00050036,120]
[377180644,1754268688486,-400.0,0.00050036,120]
[377180645,1754268688496,-400.0,0.00050036,120]
[377180646,1754268688506,-462.96552808,0.00050036,120]
[377180647,1754268688515,-400.0,0.00050036,120]
[377180648,1754268688525,-400.0,0.00050036,120]
[377180649,1754268688535,-805.41,0.00050036,120]
[377180650,1754268688544,-400.0,0.00050036,120]
[377180651,1754268688554,-352.46948412,0.00050036,120]
[377180652,1754268688564,-696.53,0.00050036,120]
[377180653,1754268688573,-151.0,0.00050036,120]
[377180654,1754268688583,-400.0,0.00050036,120]
[377180655,1754268688593,-400.0,0.00050036,120]
[377180656,1754268688603,-912.95,0.00050036,120]
[377180657,1754268688612,-400.0,0.00050036,120]
[377180658,1754268688622,-905.71,0.00050036,120]
[377180659,1754268688632,-400.0,0.00050036,120]
[377180660,1754268688641,-580.23,0.00050036,120]
[377180661,1754268688650,-793.8,0.00050036,120]
[377180662,1754268688659,-400.0,0.00050036,120]
[377180663,1754268688669,-552.79,0.00050036,120]
[377180664,1754268688678,-400.0,0.00050036,120]
[377180665,1754268688691,-1237.18,0.00050036,120]
[377180666,1754268688701,-450.25,0.00050036,120]
[377180667,1754268688711,-795.25,0.00050036,120]
[377180668,1754268688721,-400.0,0.00050036,120]
[377180669,1754268688731,-400.0,0.00050036,120]
[377180670,1754268688740,-400.0,0.00050036,120]
[377180671,1754268688750,-756.53,0.00050036,120]
[377180672,1754268688759,-1351.92,0.00050036,120]
[377180673,1754268688769,-400.0,0.00050036,120]
[377180674,1754268688778,-1388.21,0.00050036,120]
[377180675,1754268688788,-698.43,0.00050036,120]
[377180676,1754268688798,-157.4709871,0.00050036,120]
[377180677,1754268688807,-400.0,0.00050036,120]
[377180678,1754268688816,-589.66,0.00050036,120]
[377180679,1754268688826,-400.0,0.00050036,120]
[377180680,1754268688836,-867.69,0.00050036,120]
[377180681,1754268688847,-405.40696868,0.00050036,120]
[377180682,1754268688858,-400.0,0.00050036,120]
[377180683,1754268688868,-400.0,0.00050036,120]
[377180684,1754268688878,-400.0,0.00050036,120]
[377180685,1754268688888,-400.0,0.00050036,120]
[377180686,1754268688898,-446.14,0.00050036,120]
[377180687,1754268688907,-596.56,0.00050036,120]
[377180688,1754268688917,-400.0,0.00050036,120]
[377180689,1754268688927,-400.0,0.00050036,120]
[377180690,1754268688936,-400.0,0.00050036,120]
[377180691,1754268688946,-841.86,0.00050036,120]
[377180692,1754268688955,-151.0,0.00050036,120]
[377180693,1754268688965,-400.0,0.00050036,120]
[377180694,1754268688975,-400.0,0.00050036,120]
[377180695,1754268688984,-151.0,0.00050036,120]
[377180696,1754268688994,-611.64,0.00050036,120]
[377180697,1754268689004,-151.0,0.00050036,120]
[377180698,1754268689013,-151.0,0.00050036,120]
[377180699,1754268689023,-400.0,0.00050036,120]
[377180700,1754268689032,-535.30184119,0.00050036,120]
[377180701,1754268689042,-400.0,0.00050036,120]